bitfinex-derivatives/quotes_ETHF0:USTF0_20251107
["timestamp","ask_amount","ask_price","bid_price","bid_amount"]
[1762497664742,0.72863,3356.3,3356.2,0.71862]
[1762497667745,0.2457,3356.3,3356.2,0.71862]
[1762497668045,0.88807006,3356.5,3356.4,0.72381]
[1762497668245,0.00676006,3356.5,3356.4,0.72381]
[1762497669339,0.2484,3356.1,3356.0,0.2409]
[1762497669544,0.73133,3356.4,3356.3,0.48292]
[1762497669742,0.00676006,3356.5,3356.4,0.72381]
[1762497669947,0.14916006,3356.5,3356.4,0.72381]
[1762497670147,0.63206006,3356.5,3356.4,0.2409]
[1762497670446,0.39756006,3356.5,3356.4,0.72381]
[1762497670837,0.14916006,3356.5,3356.4,0.72381]
[1762497671342,0.63206006,3356.5,3356.4,0.72381]
[1762497673238,0.14916006,3356.5,3356.4,0.72381]
[1762497673441,0.00676006,3356.5,3356.4,0.72381]
[1762497674448,0.00676006,3356.5,3356.4,2.86686388]
[1762497675543,0.00676006,3356.5,3356.4,0.72381]
[1762497680252,0.00676006,3356.5,3356.4,3.93161]
[1762497681147,0.00676006,3356.5,3356.4,0.72381]
[1762497681341,0.00676006,3356.5,3356.4,3.93161]
[1762497683957,0.39756006,3356.5,3356.4,3.93161]
[1762497684253,0.39756006,3356.5,3356.4,5.82999262]
[1762497684453,0.39756006,3356.5,3356.4,6.07089262]
[1762497684652,0.14916006,3356.5,3356.4,6.07089262]
[1762497684964,0.00676006,3356.5,3356.4,3.93161]
[1762497689057,0.39756006,3356.5,3356.4,5.82932229]
[1762497689556,0.00676006,3356.5,3356.4,3.93161]
[1762497698559,0.00676006,3356.5,3356.4,12.73861]
[1762497700556,3.5928,3357.5,3357.4,0.48277]
[1762497700756,0.15,3357.5,3357.4,0.71587]
[1762497701558,0.15270715,3357.5,3357.4,0.71845414]
[1762497702163,0.63545715,3357.5,3357.4,0.71845414]
[1762497703562,0.63545715,3357.5,3357.4,0.48535414]
[1762497703563,0.87045715,3357.5,3357.4,0.48535414]
[1762497707957,0.87045715,3357.5,3357.4,0.00258414]
[1762497709570,4.07825715,3357.5,3357.4,0.00258414]
[1762497710971,0.71785,3356.8,3356.7,2.14280031]
[1762497711269,0.235,3356.6,3356.5,0.48289]
[1762497711972,0.235,3356.6,3356.5,0.48550817]
[1762497712665,0.71788,3356.6,3356.5,0.48550817]
[1762497716982,0.71788,3356.6,3356.5,0.00261817]
[1762497719177,0.71788,3356.6,3356.5,0.48551817]
[1762497720789,0.71788,3356.6,3356.5,0.00261817]
[1762497722289,0.71788,3356.6,3356.5,0.48551817]
[1762497723889,0.71788,3356.6,3356.5,0.71861817]
[1762497724596,0.86905,3357.0,3356.9,0.48284]
[1762497725592,0.86905,3357.0,3356.9,0.72404]
[1762497725786,0.86905,3357.0,3356.9,0.48284]
[1762497727093,0.86905,3357.0,3356.9,0.72404]
[1762497729491,0.48279,3357.2,3357.1,0.48279]
[1762497729998,12.0138,3357.3,3357.2,0.72399]
[1762497730197,3.2078,3357.3,3357.2,0.72399]
[1762497730892,3.69058,3357.3,3357.2,0.72399]
[1762497731089,0.2382,3356.8,3356.7,2.62567031]
[1762497731290,0.48284,3356.9,3356.8,0.72405]
[1762497733697,0.62542,3357.0,3356.9,0.48284]
[1762497733897,0.86362,3357.0,3356.9,0.48284]
[1762497736591,0.2382,3356.8,3356.7,2.62567031]
[1762497737601,0.2382,3356.8,3356.7,2.86687031]
[1762497737800,0.86363,3357.0,3356.9,0.48284]
[1762497739004,0.2382,3356.7,3356.6,5.83348031]
[1762497739205,0.2382,3356.7,3356.6,6.07468031]
[1762497741598,0.62543,3357.0,3356.9,0.48284]
[1762497741800,0.86363,3357.0,3356.9,0.48284]
[1762497742002,0.1426,3357.0,3356.9,0.72404]
[1762497742202,0.48281,3357.2,3357.1,0.48279]
[1762497742605,3.92879,3357.3,3357.2,0.48279]
[1762497743703,0.48278,3357.4,3357.3,0.48278]
[1762497744302,0.72098,3357.4,3357.3,0.72398]
[1762497745008,0.72098,3357.4,3357.3,0.48278]
[1762497746411,0.2382,3357.4,3357.3,0.72398]
[1762497746808,0.72097,3357.4,3357.3,0.72398]
[1762497747407,0.2382,3357.4,3357.3,0.72398]
[1762497748705,0.72097,3357.4,3357.3,0.72398]
[1762497749112,0.72097,3357.4,3357.3,0.48278]
[1762497750009,0.2382,3357.2,3357.1,3.69061]
[1762497750314,0.721,3357.2,3357.1,3.69061]
[1762497750708,0.2382,3357.2,3357.1,3.69061]
[1762497751108,0.2382,3357.2,3357.1,3.93181]
[1762497751305,0.72099,3357.2,3357.1,3.93181]
[1762497751510,0.72099,3357.2,3357.1,3.69061]
[1762497754013,0.72099,3357.2,3357.1,0.48281]
[1762497755125,0.73491,3357.1,3357.0,2.62562031]
[1762497755415,0.73491,3357.1,3357.0,0.48282]
[1762497757822,0.87322,3357.0,3356.9,0.48284]
[1762497758721,0.2309,3356.8,3356.7,2.14280031]
[1762497759522,0.71375,3356.8,3356.7,2.62567031]
[1762497759815,0.2309,3356.8,3356.7,2.86347031]
[1762497760022,0.85203,3357.0,3356.9,0.48284]
[1762497760620,0.48281,3357.2,3357.1,0.48279]
[1762497761024,0.71371,3357.2,3357.1,0.48279]
[1762497761714,0.62764,3357.0,3356.9,0.48283]
[1762497761909,0.85854,3357.0,3356.9,0.48283]
[1762497763023,0.71375,3356.8,3356.7,2.62565031]
[1762497764720,0.71378,3356.6,3356.5,0.00261817]
[1762497765022,0.71378,3356.6,3356.5,1.817e-05]
[1762497768626,3.2078,3356.8,3356.5,1.817e-05]
[1762497768627,0.48287,3356.7,3356.6,0.2378]
[1762497768826,0.71377,3356.7,3356.6,0.48288]
[1762497769926,3.2078,3356.8,3356.7,0.72067]
[1762497769927,3.69065,3356.8,3356.7,0.72067]
[1762497770325,0.48287,3356.7,3356.6,0.48288]
[1762497771331,0.48287,3356.7,3356.6,0.72068]
[1762497771532,0.71377,3356.7,3356.6,0.72068]
[1762497772424,0.2309,3356.7,3356.6,0.72068]
[1762497773028,0.71377,3356.7,3356.6,0.72068]
[1762497773931,0.48285,3356.8,3356.7,0.72067]
[1762497774629,0.48284,3356.9,3356.8,0.72064]
[1762497777428,0.48284,3356.9,3356.8,0.2378]
[1762497777634,0.71374,3356.9,3356.8,0.48285]
[1762497783130,0.71378,3356.7,3356.6,0.48286]
[1762497783533,0.2309,3356.7,3356.6,0.48286]
[1762497783734,0.71377,3356.7,3356.6,0.48286]
[1762497783935,0.48287,3356.7,3356.6,0.48286]
[1762497784134,0.48287,3356.7,3356.6,0.72066]
[1762497784536,0.71377,3356.7,3356.6,0.48286]
[1762497784736,0.48288,3356.6,3356.5,1.817e-05]
[1762497785937,0.2453,3356.8,3356.7,0.48285]
[1762497786239,0.48288,3356.7,3356.6,0.48288]
[1762497786438,0.72818,3356.7,3356.6,0.48288]
[1762497787332,0.48288,3356.6,3356.5,0.48290817]
[1762497787532,0.72818,3356.6,3356.5,0.48290817]
[1762497788235,0.48288,3356.6,3356.5,1.817e-05]
[1762497788436,0.72822,3356.3,3356.2,0.00446854]
[1762497788638,3.93602,3356.3,3356.2,0.00446854]
[1762497789340,3.93602,3356.3,3356.2,0.00766794]
[1762497790439,0.72822,3356.3,3356.2,0.00766794]
[1762497790939,3.93602,3356.3,3356.2,0.00766794]
[1762497794538,3.93602,3356.3,3356.2,0.49060794]
[1762497794743,3.93602,3356.3,3356.2,0.00766794]
[1762497797043,3.4531,3356.3,3355.6,2.14280031]
[1762497797243,0.1483,3355.5,3355.1,4.820021]
[1762497797448,0.72838,3355.2,3355.1,0.48308]
[1762497797745,0.87671,3355.0,3354.9,2.62592031]
[1762497798141,0.8801441,3355.0,3354.9,2.62903145]
[1762497798441,0.8801441,3355.0,3354.9,0.00311114]
[1762497798640,0.8801441,3355.0,3354.9,0.48624114]
[1762497798840,0.8801441,3355.0,3354.9,0.00311114]
[1762497799043,0.8801441,3355.0,3354.9,0.48624114]
[1762497799249,0.8801441,3355.0,3354.9,0.72684114]
[1762497799940,0.8801441,3355.0,3354.9,0.00311114]
[1762497800148,0.8801441,3355.0,3354.9,0.48624114]
[1762497801345,0.8801441,3355.0,3354.9,0.00311114]
[1762497802347,0.72845,3354.7,3354.6,0.00446854]
[1762497802547,3.93625,3354.7,3354.6,0.00446854]
[1762497803448,3.93625,3354.7,3354.6,0.0074583]
[1762497809254,12.73925,3354.7,3354.6,0.0074583]
[1762497810155,0.2453,3354.9,3354.8,0.48313]
[1762497810354,0.2453,3354.9,3354.8,0.72373]
[1762497810556,0.48313,3354.9,3354.8,0.72373]
[1762497810754,0.1517341,3355.0,3354.9,0.72373]
[1762497811157,0.3970341,3355.0,3354.9,0.48313]
[1762497811563,0.8801641,3355.0,3354.9,0.48313]
[1762497811956,0.1517341,3355.0,3354.6,0.0074583]
[1762497812152,0.72844,3354.9,3354.8,0.48314]
[1762497813761,0.48315,3354.8,3354.7,0.48315]
[1762497813964,0.72845,3354.8,3354.7,0.48315]
[1762497815064,0.72845,3354.7,3354.6,0.0074583]
[1762497816169,0.48315,3354.7,3354.6,0.7320283]
[1762497816573,0.48314,3354.8,3354.7,0.72453]
[1762497816774,0.48313,3354.9,3354.8,0.72453]
[1762497817069,0.1517341,3355.0,3354.6,0.0074583]
[1762497817070,0.6348441,3355.0,3354.9,0.72453]
[1762497818672,0.8684441,3355.0,3354.9,0.72453]
[1762497819068,0.0034341,3355.0,3354.9,0.72453]
[1762497819271,0.6280441,3355.0,3354.9,0.72453]
[1762497819473,0.8616441,3355.0,3354.9,0.48313]
[1762497820472,0.0034341,3355.0,3354.9,8.71443]
[1762497820867,0.0034341,3355.0,3354.9,0.71443]
[1762497821867,0.0034341,3355.0,3354.9,10.85723031]
[1762497822775,0.0034341,3355.0,3354.9,8.71443]
[1762497823977,0.0034341,3355.0,3354.9,0.71443]
[1762497825471,0.0034341,3355.0,3354.9,8.71443]
[1762497825671,0.0034341,3355.0,3354.9,14.67603]
[1762497826074,0.0034341,3355.0,3354.9,8.71443]
[1762497826379,0.483,3355.8,3355.7,0.7143]
[1762497826772,3.2078,3355.9,3355.8,0.483]
[1762497827078,3.4414,3355.9,3355.8,0.483]
[1762497827374,3.44515441,3355.9,3355.8,0.483]
[1762497828068,0.00375441,3355.9,3355.8,0.7143]
[1762497828672,0.72034441,3355.9,3355.8,0.483]
[1762497830178,0.23735441,3355.9,3355.8,0.483]
[1762497831679,0.72033441,3355.9,3355.8,0.483]
[1762497834078,0.71663,3355.7,3355.6,0.48303]
[1762497835167,0.2336,3355.7,3355.6,0.71433]
[1762497835667,0.71661,3355.7,3355.6,0.71433]
[1762497835868,0.2336,3355.7,3355.6,0.71433]
[1762497836072,0.00375441,3355.9,3355.8,0.7143]
[1762497836273,0.48673441,3355.9,3355.8,0.7143]
[1762497837468,0.00375441,3355.9,3355.8,0.7143]
[1762497837673,0.48673441,3355.9,3355.8,0.7143]
[1762497839283,0.72033441,3355.9,3355.8,0.7143]
[1762497839578,0.71664,3355.7,3355.6,0.48302]
[1762497839976,0.3751,3355.5,3355.4,0.48305]
[1762497840285,0.48307,3355.4,3355.3,0.48306]
[1762497840486,0.71667,3355.4,3355.3,0.48306]
[1762497841285,0.3751,3355.0,3354.9,2.13876904]
[1762497841490,0.3751,3355.0,3354.9,2.85319904]
[1762497841790,0.1415,3355.0,3354.9,2.85319904]
[1762497842779,0.2336,3355.4,3355.3,0.71435]
[1762497842985,0.62455,3355.5,3355.4,0.48305]
[1762497843286,0.3751,3355.5,3355.4,0.48305]
[1762497843479,0.1415,3355.5,3355.4,0.71435]
[1762497844781,0.3751,3355.5,3355.4,0.71435]
[1762497845586,0.1415,3355.5,3355.4,0.71435]
[1762497846483,0.62454,3355.5,3355.4,0.71435]
[1762497850794,0.71415,3355.4,3355.3,0.48306]
[1762497851397,0.1415,3355.5,3355.4,0.48305]
[1762497851589,0.1415,3355.5,3355.4,0.71605]
[1762497851792,0.62454,3355.5,3355.4,0.71605]
[1762497853395,0.62454,3355.5,3355.3,0.48306]
[1762497853396,0.71417,3355.4,3355.3,0.48306]
[1762497857403,0.71417,3355.4,3355.3,0.71606]
[1762497857703,0.1415,3355.5,3355.4,0.71605]
[1762497859206,0.2311,3355.8,3355.3,2.13926144]
[1762497859404,0.48304,3355.7,3355.6,0.48301]
[1762497859702,0.71414,3355.7,3355.6,0.48301]
[1762497859895,0.71414,3355.7,3355.6,0.71601]
[1762497860097,0.2311,3355.7,3355.6,0.71601]
[1762497860299,0.48301,3355.8,3355.7,0.48301]
[1762497860499,3.21155441,3355.9,3355.8,0.716]
[1762497860697,0.00375441,3355.9,3355.8,0.716]
[1762497867009,0.00375441,3355.9,3355.8,3.9238]
[1762497867507,0.00375441,3355.9,3355.8,6.60102069]
[1762497868211,0.00375441,3355.9,3355.8,3.9238]
[1762497869808,0.6212,3356.5,3356.4,0.71588]
[1762497870805,0.62439011,3356.5,3356.4,0.71588]
[1762497872509,0.00446854,3356.8,3356.7,0.71587]
[1762497872705,0.00446854,3356.8,3356.7,3.92367]
[1762497873414,0.4829,3356.6,3356.5,0.4829]
[1762497873606,0.71760123,3356.6,3356.5,0.4829]
[1762497879414,0.71760123,3356.6,3356.4,0.00446854]
[1762497879415,0.4829,3356.5,3356.4,0.48737854]
[1762497879618,0.8682,3356.5,3356.4,0.48737854]
[1762497896725,0.8682,3356.5,3356.4,0.00446854]
[1762497897429,0.235,3356.1,3356.0,0.48296]
[1762497898524,0.71795,3356.1,3356.0,0.48296]
[1762497899328,0.86828,3356.0,3355.9,0.48298]
[1762497899832,0.71798,3355.9,3355.8,2.13940447]
[1762497900430,0.235,3355.9,3355.8,2.62238447]
[1762497900729,0.71798,3355.9,3355.8,2.62238447]
[1762497901232,0.235,3355.9,3355.8,2.86968447]
[1762497901533,0.71791,3356.4,3356.3,0.48291]
[1762497901829,0.48291,3356.4,3356.3,0.73021]
[1762497904330,0.71791,3356.4,3356.3,0.73021]
[1762497906628,0.71791,3356.4,3356.3,0.48291]
[1762497910134,0.48294,3356.3,3356.2,0.48293]
[1762497910432,0.71274,3356.3,3356.2,0.48293]
[1762497912333,0.71275,3356.1,3356.0,2.14277161]
[1762497912641,0.7128,3355.8,3355.7,2.14724015]
[1762497913132,0.7128,3355.8,3355.7,0.00446854]
[1762497914534,0.48305,3355.4,3355.3,2.12561158]
[1762497914729,0.48305,3355.4,3354.8,0.48313]
[1762497914730,0.48313,3354.9,3354.8,0.48314]
[1762497914942,0.2298,3354.9,3354.8,0.72894]
[1762497915245,0.62781,3355.0,3354.9,0.72893]
[1762497915434,0.85761,3355.0,3354.9,0.72893]
[1762497915834,0.85761,3355.0,3354.9,0.48313]
[1762497918634,3.21226854,3355.3,3355.2,0.72888]
[1762497918841,0.48753854,3355.3,3355.2,0.72888]
[1762497919040,0.1447,3355.0,3354.6,3.2152583]
[1762497919741,0.85763,3355.0,3354.9,0.48311]
[1762497920043,0.71294,3354.9,3354.8,0.48314]
[1762497920243,0.48315,3354.8,3354.7,0.48315]
[1762497920444,0.71295,3354.8,3354.7,0.48315]
[1762497923134,0.71295,3354.7,3354.6,0.0074583]
[1762497923538,0.71295,3354.7,3354.6,0.4906283]
[1762497924249,0.71295,3354.7,3354.6,0.0074583]
[1762497925139,3.92075,3354.7,3354.6,0.0074583]
[1762497925339,0.2298,3353.9,3353.8,0.2458]
[1762497925536,0.2298,3353.9,3353.8,0.48328]
[1762497926141,0.71308,3353.8,3353.7,0.4833]
[1762497926442,0.71551783,3353.8,3353.7,0.48572093]
[1762497926742,0.71551783,3353.8,3353.7,0.00242093]
[1762497926944,0.71551783,3353.8,3353.7,0.48572093]
[1762497928348,0.23223783,3353.8,3353.7,0.48572093]
[1762497928848,0.71551783,3353.8,3353.7,0.48572093]
[1762497929049,0.71551783,3353.8,3353.7,0.73152093]
[1762497930253,0.23223783,3353.8,3353.7,0.73152093]
[1762497930438,0.00243783,3353.8,3353.7,0.73152093]
[1762497932147,0.48318,3354.6,3354.5,0.48318]
[1762497932447,0.48318,3354.6,3354.5,0.72898]
[1762497932652,3.69095,3354.7,3354.6,0.72897]
[1762497932855,3.92075,3354.7,3354.6,0.48317]
[1762497933247,0.71301,3354.4,3354.3,0.4832]
[1762497934953,0.71295,3354.1,3354.0,0.48324]
[1762497935956,0.2297,3354.1,3354.0,0.73254]
[1762497936148,0.71294,3354.2,3354.1,0.48324]
[1762497936456,0.1514,3354.0,3353.9,0.48326]
[1762497938065,0.1514,3354.0,3353.9,0.73256]
[1762497938560,0.48324,3354.1,3354.0,0.73256]
[1762497939559,0.73203,3354.2,3354.1,0.48323]
[1762497939860,0.2488,3354.2,3354.1,0.48323]
[1762497940253,0.87669,3354.5,3354.4,0.4832]
[1762497940556,0.1447,3354.5,3354.4,0.7119]
[1762497940759,0.48318,3354.6,3354.5,0.71188]
[1762497941754,0.73198,3354.6,3354.5,0.71188]
[1762497943259,0.48318,3354.6,3354.5,0.71188]
[1762497944658,3.2098959,3354.7,3354.6,0.71187]
[1762497945055,3.6930459,3354.7,3354.6,0.71187]
[1762497946062,3.9418459,3354.7,3354.6,0.71187]
[1762497946256,3.9418459,3354.7,3354.6,0.48317]
[1762497946763,0.87631,3354.5,3354.4,0.48318]
[1762497948164,0.87631,3354.5,3354.4,0.71188]
[1762497954172,0.1443,3354.5,3354.4,0.71188]
[1762497954568,0.62748,3354.5,3354.4,0.71188]
[1762497956475,0.48318,3354.5,3354.4,0.71188]
[1762497957174,0.62748,3354.5,3354.4,0.71188]
[1762497959679,0.87628,3354.5,3354.4,0.71188]
[1762497959978,0.87628,3354.5,3354.4,0.48318]
[1762497960576,0.732,3354.4,3354.3,2.61815756]
[1762497960775,0.2488,3354.4,3354.3,2.61815756]
[1762497960972,0.4852659,3354.7,3354.6,0.71187]
[1762497961279,0.7340659,3354.7,3354.6,0.48317]
[1762497962277,0.4852659,3354.7,3354.6,0.71187]
[1762497968182,0.4852659,3354.7,3354.6,2.85676799]
[1762497971890,0.0020959,3354.7,3354.6,0.71187]
[1762497973286,0.00446854,3355.3,3355.2,0.71698]
[1762497973991,0.00446854,3355.3,3355.2,2.86163896]
[1762497974284,0.00790081,3355.3,3355.2,0.71698]
[1762497975789,0.00790081,3355.3,3355.2,2.86163896]
[1762497976288,0.00790081,3355.3,3355.2,0.71698]
[1762497978888,0.00790081,3355.3,3355.2,2.86163896]
[1762497980391,0.00790081,3355.3,3355.2,0.71698]
[1762497982793,0.00790081,3355.3,3355.2,2.86163896]
[1762497984688,0.48293,3356.3,3356.0,0.71687]
[1762497984892,0.48293,3356.3,3356.2,0.2339]
[1762497985487,0.71903,3356.3,3356.2,0.2339]
[1762497985990,0.7212342,3356.3,3356.2,0.00248033]
[1762497986190,0.85697,3356.0,3355.9,0.00446854]
[1762497986400,0.71917,3355.3,3355.2,2.1383465]
[1762497986696,0.71923,3354.9,3354.8,0.48313]
[1762497986889,0.48313,3354.9,3354.8,0.71703]
[1762497987088,0.1379,3355.0,3354.9,0.71703]
[1762497987284,0.1379,3355.0,3354.9,0.72029539]
[1762497987487,0.374,3355.0,3354.9,0.48639539]
[1762497987689,0.85711,3355.0,3354.9,0.00326539]
[1762497988687,0.71925,3354.7,3354.6,0.00446854]
[1762497988890,3.92705,3354.7,3354.6,0.00446854]
[1762497989691,3.92705,3354.7,3354.6,0.00796895]
[1762497992894,3.4439,3354.7,3354.6,0.49113895]
[1762497993101,0.71925,3354.7,3354.6,0.72503895]
[1762497993302,0.71925,3354.7,3354.6,0.24186895]
[1762497993503,3.92705,3354.7,3354.6,0.00796895]
[1762497994201,3.92705,3354.7,3354.6,0.49113895]
[1762497994404,3.2078,3354.7,3354.6,0.72503895]
[1762497994702,3.92705,3354.7,3354.6,0.72503895]
[1762497995293,3.4439,3354.7,3354.6,0.72503895]
[1762497995499,0.62103,3355.0,3354.9,0.48313]
[1762497995700,0.86263,3355.0,3354.9,0.48313]
[1762497996602,0.48315,3354.8,3354.7,0.72425]
[1762497996901,0.72475,3354.8,3354.7,0.72425]
[1762497998398,0.2416,3354.8,3354.7,0.72425]
[1762497999804,0.1379,3355.0,3354.9,0.72963]
[1762498000009,0.3678,3355.0,3354.9,0.72963]
[1762498000503,0.85091,3355.0,3354.9,0.72963]
[1762498002103,0.62101,3355.0,3354.9,0.72963]
[1762498003003,0.85091,3355.0,3354.9,0.72963]
[1762498003200,0.48314,3354.9,3354.8,0.48313]
[1762498003396,0.71304,3354.9,3354.8,0.48313]
[1762498004297,0.71304,3354.9,3354.8,0.72963]
[1762498004505,0.71304,3354.9,3354.8,0.48313]
[1762498005102,0.2299,3354.9,3354.6,0.00796895]
[1762498005314,3.92085,3354.7,3354.6,0.00796895]
[1762498008705,3.2078,3354.7,3354.6,0.25446895]
[1762498008913,0.1379,3355.0,3354.9,0.48313]
[1762498009213,0.3678,3355.0,3354.9,0.48313]
[1762498009412,0.2299,3354.8,3354.7,0.48315]
[1762498010113,0.2299,3354.7,3354.6,0.00796895]
[1762498011206,0.48313,3354.9,3354.7,0.48315]
[1762498011908,0.3678,3355.0,3354.8,0.48313]
[1762498012212,0.71297,3355.3,3355.2,0.48308]
[1762498012710,0.2299,3355.3,3355.2,0.48308]
[1762498012910,0.2299,3355.3,3355.2,0.72958]
[1762498013114,0.71297,3355.3,3355.2,0.72958]
[1762498013507,3.3457,3355.5,3354.7,5.3461465]
[1762498013704,0.1491,3355.0,3354.7,3.2078]
[1762498014614,0.86212,3355.0,3354.9,0.48312]
[1762498019414,0.63222,3355.0,3354.9,0.48313]
[1762498019618,0.86212,3355.0,3354.9,0.48313]
[1762498020417,0.2299,3355.3,3355.2,0.48307]
[1762498021517,0.71298,3355.3,3355.2,0.48307]
[1762498021710,0.2299,3355.3,3355.2,0.48307]
[1762498022717,0.71297,3355.3,3355.2,0.48307]
[1762498024318,0.71297,3355.3,3355.2,0.72957]
[1762498024516,0.71297,3355.3,3355.2,0.48307]
[1762498024718,0.48307,3355.3,3355.2,0.72957]
[1762498025213,0.73217,3355.3,3355.2,0.72957]
[1762498025606,0.48305,3355.4,3355.3,0.48305]
[1762498025811,3.3457,3355.5,3355.4,0.2359]
[1762498026613,3.3457,3355.5,3355.4,0.71895]
[1762498027717,3.82874,3355.5,3355.4,0.71895]
[1762498028320,3.3457,3355.5,3355.4,0.71895]
[1762498028522,4.07784,3355.5,3355.4,0.2359]
[1762498028725,0.73215,3355.4,3355.3,0.48306]
[1762498029522,0.73215,3355.4,3355.3,0.71896]
[1762498030522,0.2491,3355.4,3355.3,0.71896]
[1762498031522,0.73215,3355.4,3355.3,0.71896]
[1762498031723,0.62095,3355.5,3355.4,0.71895]
[1762498032419,0.1379,3355.5,3355.4,0.71895]
[1762498032727,0.62094,3355.5,3355.4,0.71895]
[1762498034523,0.87004,3355.5,3355.4,0.71895]
[1762498035322,0.87004,3355.5,3355.4,0.48305]
[1762498035517,0.48308,3355.2,3355.1,2.6214365]
[1762498035822,0.73218,3355.2,3355.1,0.48309]
[1762498036417,0.73218,3355.2,3355.1,2.6214365]
[1762498039927,0.73218,3355.2,3355.1,2.8573365]
[1762498040324,0.73218,3355.2,3355.1,0.48309]
[1762498040824,0.73221,3355.1,3355.0,0.48311]
[1762498041324,0.73221,3355.1,3355.0,0.71901]
[1762498041520,0.2491,3355.1,3355.0,0.71901]
[1762498042029,0.7322,3355.1,3355.0,0.71901]
[1762498043324,0.7322,3355.1,3355.0,0.48311]
[1762498045022,0.7322,3355.1,3355.0,0.71901]
[1762498045330,0.48307,3355.3,3355.2,0.71895]
[1762498045627,0.73217,3355.3,3355.2,2.86333959]
[1762498045832,0.73217,3355.3,3355.2,2.14438959]
[1762498046226,0.73217,3355.3,3355.2,2.62746959]
[1762498046426,0.73217,3355.3,3355.2,2.14438959]
[1762498046624,0.73218,3355.2,3355.1,2.14438959]
[1762498046827,3.2078,3355.3,3354.8,2.67722069]
[1762498046828,0.2491,3354.9,3354.8,2.62752959]
[1762498048531,0.73222,3354.9,3354.8,2.62752959]
[1762498048927,0.73222,3354.9,3354.8,0.48314]
[1762498049629,0.73224,3354.8,3354.7,2.14438959]
[1762498049833,0.73224,3354.8,3354.7,2.62753959]
[1762498050029,0.73225,3354.7,3354.6,2.15235854]
[1762498050527,0.73225,3354.7,3354.6,0.00796895]
[1762498057023,0.2421,3353.8,3353.7,0.48329]
[1762498057830,0.24485731,3353.8,3353.7,0.48622707]
[1762498058029,0.24485731,3353.8,3353.7,0.72612707]
[1762498059427,0.72813731,3353.8,3353.7,0.72612707]
[1762498059631,0.72813731,3353.8,3353.7,0.48622707]
[1762498063447,0.72813731,3353.8,3353.7,0.00293707]
[1762498063839,0.72813731,3353.8,3353.7,0.48623707]
[1762498066641,0.72813731,3353.8,3353.7,0.00293707]
[1762498066854,0.2513,3352.6,3352.3,3.2078]
[1762498067042,0.2513,3352.4,3352.3,3.93789]
[1762498067547,0.1489,3352.5,3352.4,0.73009]
[1762498067740,0.1489,3352.5,3352.4,0.73335022]
[1762498067942,0.63237,3352.5,3352.4,0.73335022]
[1762498068447,0.88367,3352.5,3352.4,0.73335022]
[1762498069743,0.4002,3352.5,3352.4,0.73335022]
[1762498070249,0.88367,3352.5,3352.4,0.00326022]
[1762498070442,4.09147,3352.5,3352.4,0.00326022]
[1762498070642,4.09147,3352.5,3352.4,0.48674022]
[1762498070844,3.608,3352.5,3352.4,0.48674022]
[1762498071043,0.1489,3352.5,3352.4,0.73334022]
[1762498071351,0.4002,3352.5,3352.4,0.73334022]
[1762498071740,0.88367,3352.5,3352.4,0.24986022]
[1762498071944,0.88367,3352.5,3352.4,0.00326022]
[1762498073151,0.4002,3352.0,3351.9,0.48356]
[1762498073349,0.2513,3351.7,3351.6,0.7302]
[1762498073753,0.73489,3351.7,3351.6,0.7302]
[1762498074052,0.73489,3351.7,3351.6,0.48709957]
[1762498074356,0.73489,3351.7,3351.6,0.00349957]
[1762498074654,3.3567,3352.0,3351.0,3.2078]
[1762498074655,0.2513,3351.3,3351.2,0.48365]
[1762498075255,0.73494,3351.3,3351.2,0.48365]
[1762498075555,0.4002,3351.5,3351.4,0.48363]
[1762498075756,0.88612312,3351.5,3351.3,0.48364]
[1762498075950,0.2513,3351.4,3351.3,0.48364]
[1762498076251,0.73493,3351.4,3351.3,0.48364]
[1762498076552,0.2513,3351.4,3351.3,0.48364]
[1762498076753,0.63483312,3351.5,3351.4,0.48363]
[1762498076955,0.88613312,3351.5,3351.4,0.48363]
[1762498077150,0.2513,3351.3,3351.2,0.48703339]
[1762498077551,0.2513,3351.3,3351.2,0.73363339]
[1762498077854,0.73493,3351.4,3351.3,0.48364]
[1762498078257,0.73493,3351.4,3351.2,0.00338339]
[1762498078258,0.48364,3351.4,3351.2,0.73363339]
[1762498078456,0.48364,3351.4,3351.3,0.2466]
[1762498078856,0.88613312,3351.5,3351.4,0.48363]
[1762498079060,0.40251312,3351.5,3351.4,0.73023]
[1762498080254,0.40251312,3351.5,3351.4,0.48363]
[1762498080657,0.40251312,3351.5,3351.4,0.73023]
[1762498081554,0.88612312,3351.5,3351.4,0.73023]
[1762498081753,0.00231312,3351.5,3351.4,0.73023]
[1762498082956,0.00231312,3351.5,3351.4,11.93803]
[1762498083456,1.312e-05,3351.5,3351.4,11.93803]
[1762498083756,0.00446854,3352.3,3352.2,0.2466]
[1762498083962,0.73483,3352.1,3352.0,0.48354]
[1762498084660,0.73797747,3352.1,3352.0,0.48354]
[1762498085758,0.2456,3351.5,3351.4,0.2441]
[1762498085959,0.48357,3351.9,3351.6,0.2441]
[1762498086157,0.48357,3351.9,3351.8,0.2441]
[1762498086350,0.72917,3351.9,3351.8,0.2441]
[1762498086957,0.72917,3351.9,3351.7,0.48359]
[1762498087162,0.72917,3351.8,3351.7,0.48359]
[1762498088063,0.72917,3351.8,3351.7,0.72769]
[1762498088358,3.21094747,3352.1,3352.0,0.48354]
[1762498088359,3.69447747,3352.1,3352.0,0.48354]
[1762498088559,3.69447747,3352.1,3352.0,0.86494]
[1762498088762,0.00314747,3352.1,3352.0,0.86494]
[1762498091564,0.72924,3351.3,3351.2,0.00338339]
[1762498093056,0.4836,3351.6,3351.5,0.3814]
[1762498093259,0.4836,3351.6,3351.5,0.86501]
[1762498093659,0.7292,3351.6,3351.5,0.86501]
[1762498095264,0.48363,3351.4,3351.3,0.2441]
[1762498095566,0.72924,3351.3,3351.2,0.00338339]
[1762498101764,0.72924,3351.3,3351.2,0.24748339]